bitfinex/quotes_ETHUSD_20250115
["timestamp","ask_amount","ask_price","bid_price","bid_amount"]
[1736914132980,3.08864,3237.7,3236.8,0.7628]
[1736914133372,3.63844,3237.9,3236.8,0.7628]
[1736914133587,4.380704,3237.9,3236.8,0.7628]
[1736914133998,3.08853,3237.8,3236.8,0.7628]
[1736914135418,3.08853,3237.8,3237.1,0.7628]
[1736914136010,0.62433635,3237.9,3237.1,0.7628]
[1736914136210,3.08851,3237.8,3237.1,0.7628]
[1736914136412,0.37128464,3237.8,3237.1,0.7628]
[1736914136716,0.62433635,3237.9,3237.1,0.7628]
[1736914136717,3.71278635,3237.9,3237.1,0.7628]
[1736914138016,0.62433635,3237.9,3237.1,0.7628]
[1736914138319,0.663765,3238.5,3237.4,2.89983693]
[1736914138488,0.62209841,3238.4,3237.8,0.7628]
[1736914140496,3.08767,3238.7,3237.8,0.7628]
[1736914140701,3.0,3238.6,3237.8,0.7628]
[1736914141587,0.7842,3238.9,3237.8,3.85128]
[1736914142417,3.0,3238.7,3237.8,3.85128]
[1736914142717,3.774827,3238.7,3237.8,0.7628]
[1736914142918,4.38330734,3238.7,3237.8,0.7628]
[1736914143719,1.29565734,3238.7,3237.8,0.7628]
[1736914144181,3.69617034,3238.7,3237.8,0.7628]
[1736914144381,3.08786,3238.5,3237.8,0.7628]
[1736914144591,3.08797,3238.4,3237.8,0.7628]
[1736914144826,3.08804,3238.3,3237.8,0.7628]
[1736914145033,3.08804,3238.3,3237.9,0.189]
[1736914145199,0.308804,3238.2,3237.9,0.189]
[1736914145611,3.69616034,3238.7,3237.9,0.189]
[1736914145899,3.08778,3238.6,3237.9,0.189]
[1736914146321,3.08791,3238.5,3237.9,0.189]
[1736914148818,3.69615034,3238.7,3237.9,0.189]
[1736914149207,0.60848034,3238.7,3237.9,0.189]
[1736914149712,3.08759,3238.8,3238.0,0.77]
[1736914149901,3.70478992,3238.8,3238.0,0.77]
[1736914150097,3.08768,3238.7,3238.0,0.77]
[1736914150319,3.08784,3238.5,3238.0,0.77]
[1736914150849,3.08799,3238.4,3238.0,0.77]
[1736914151001,3.08799,3238.4,3234.3,35.0]
[1736914151002,3.08784,3238.5,3237.7,0.77]
[1736914151201,3.829,3238.6,3237.7,0.77]
[1736914151405,3.08822,3238.2,3237.7,0.957]
[1736914151918,0.7287198,3238.5,3237.7,0.77]
[1736914151919,3.08825,3238.1,3237.7,0.77]
[1736914152232,3.08825,3238.1,3237.7,0.957]
[1736914153143,0.63110475,3238.3,3237.7,6.94539693]
[1736914153328,0.63110475,3238.3,3237.8,0.55]
[1736914153635,0.829,3239.2,3238.1,0.77]
[1736914153636,0.60919956,3238.6,3238.1,0.77]
[1736914154131,3.08742,3239.0,3238.1,0.77]
[1736914154302,3.479062,3239.0,3238.1,0.77]
[1736914154697,0.62578315,3238.9,3238.1,0.77]
[1736914154944,3.08774,3238.7,3238.1,0.77]
[1736914155098,3.08775,3238.6,3238.1,0.77]
[1736914155519,3.62578315,3238.9,3237.4,2.89983693]
[1736914155721,3.91631,3239.1,3238.5,2.89983693]
[1736914155920,3.08738,3239.0,3238.6,0.77]
[1736914156098,3.08738,3239.0,3238.5,0.187]
[1736914156099,0.60474426,3239.0,3238.5,0.187]
[1736914156313,3.60474426,3239.0,3238.5,0.187]
[1736914156654,3.08775,3238.6,3238.5,0.187]
[1736914156800,3.396525,3238.6,3238.5,0.187]
[1736914157014,3.396525,3238.6,3238.1,0.77]
[1736914157211,0.308775,3238.6,3238.1,0.957]
[1736914157417,0.60474426,3239.0,3238.1,0.957]
[1736914157843,3.08747,3238.9,3238.1,0.957]
[1736914158431,3.08756,3238.8,3238.1,0.957]
[1736914159618,0.60474426,3239.0,3238.1,4.0452]
[1736914159844,0.60474426,3239.0,3238.2,0.7989]
[1736914160350,0.60474426,3239.0,3238.3,0.7989]
[1736914160651,0.61582724,3239.3,3238.6,0.7989]
[1736914161521,3.0,3239.4,3238.6,0.7989]
[1736914161720,3.08669,3239.8,3238.8,3.69873693]
[1736914161915,0.6067937,3239.6,3238.8,0.7989]
[1736914162152,3.0,3239.4,3238.8,0.7989]
[1736914162352,3.08702,3239.4,3238.8,0.7989]
[1736914164361,0.6067937,3239.6,3238.8,0.7989]
[1736914164657,3.0,3239.5,3238.8,0.7989]
[1736914164835,0.66936137,3239.5,3238.8,0.7989]
[1736914165030,3.6067937,3239.6,3238.8,0.7989]
[1736914165247,3.0869,3239.5,3238.8,0.7989]
[1736914165829,0.6067937,3239.6,3238.8,0.7989]
[1736914166564,0.8136,3240.0,3238.8,3.69873693]
[1736914166769,3.08639,3240.1,3239.1,2.89983693]
[1736914166982,0.308639,3240.0,3239.2,0.9906]
[1736914167130,3.308639,3240.0,3239.2,0.9906]
[1736914167477,0.9318525,3240.0,3239.2,3.27415]
[1736914167682,3.08613,3240.3,3239.4,2.89983693]
[1736914167848,3.08623,3240.2,3239.5,0.8036]
[1736914168190,3.70319466,3240.2,3239.5,0.8036]
[1736914169461,0.61696466,3240.2,3239.5,0.8036]
[1736914169662,3.70320466,3240.2,3239.5,0.8036]
[1736914169849,0.37032047,3240.1,3239.5,0.8036]
[1736914170254,3.08652,3239.9,3239.5,0.8036]
[1736914170448,3.08652,3239.9,3239.3,0.187]
[1736914170649,3.08633,3240.1,3239.4,0.8036]
[1736914171185,3.61696466,3240.2,3239.4,0.8036]
[1736914171366,3.61696466,3240.2,3239.5,2.89983693]
[1736914171538,3.61696466,3240.2,3239.6,0.8036]
[1736914171737,4.28727513,3240.2,3239.6,0.8036]
[1736914172083,1.28727513,3240.2,3239.7,0.187]
[1736914172265,0.61696466,3240.2,3239.7,0.187]
[1736914172575,3.0,3240.4,3239.7,0.187]
[1736914173069,0.62850249,3240.7,3239.9,0.8005]
[1736914173383,0.62850249,3240.7,3240.0,0.8005]
[1736914174471,0.99135274,3240.7,3240.0,0.8005]
[1736914174839,0.99135274,3240.7,3240.0,0.83136102]
[1736914175034,0.99135274,3240.7,3240.0,0.8005]
[1736914175837,0.99135274,3240.7,3240.1,2.89983693]
[1736914175954,0.8053,3241.4,3240.2,0.8005]
[1736914176153,0.61409042,3240.9,3240.2,0.8005]
[1736914176475,3.61409042,3240.9,3240.2,0.8005]
[1736914176840,0.61409042,3240.9,3240.4,0.8005]
[1736914177978,3.0,3241.1,3240.4,0.8005]
[1736914178184,0.60853,3241.0,3240.4,0.8005]
[1736914179307,0.60722458,3241.0,3240.4,0.8005]
[1736914179699,3.0856,3240.9,3240.4,0.8005]
[1736914180564,3.08566,3240.8,3240.4,0.8005]
[1736914182629,3.08578,3240.7,3240.4,0.8005]
[1736914182922,3.0858,3240.7,3240.4,0.8005]
[1736914183214,3.39438,3240.7,3240.4,0.9885]
[1736914183368,3.08594,3240.5,3240.4,0.188]
[1736914183921,3.08627,3240.2,3239.9,0.188]
[1736914184218,0.308627,3240.1,3239.9,0.188]
[1736914184388,3.08642,3240.0,3239.8,0.188]
[1736914184586,3.08642,3240.0,3239.7,0.188]
[1736914184933,3.08622,3240.3,3239.8,0.7724]
[1736914185222,3.08636,3240.1,3239.8,0.7724]
[1736914186200,0.30858,3240.7,3239.8,0.7724]
[1736914186411,3.08567,3240.8,3240.0,2.89983693]
[1736914186620,0.62920305,3240.7,3240.1,0.7724]
[1736914188114,3.08567,3240.8,3240.1,0.7724]
[1736914188684,3.69164251,3240.8,3240.1,0.7724]
[1736914189179,0.97513676,3240.8,3240.1,0.7724]
[1736914189506,0.60597251,3240.8,3240.1,0.7724]
[1736914190671,3.08587,3240.6,3240.2,0.188]
[1736914191412,3.69163251,3240.8,3240.2,0.188]
[1736914191705,0.60597251,3240.8,3240.2,0.188]
[1736914192597,3.69163251,3240.8,3240.2,0.188]
[1736914192798,4.06079576,3240.8,3240.2,0.188]
[1736914194176,4.06079576,3240.8,3240.1,0.7724]
[1736914194386,4.06079576,3240.8,3240.2,0.188]
[1736914195041,3.086,3240.5,3240.1,0.7724]
[1736914195247,4.06085576,3240.8,3240.1,0.7724]
[1736914195433,3.69169251,3240.8,3240.1,0.7724]
[1736914196462,0.60597251,3240.8,3240.1,0.7724]
[1736914196747,0.61308225,3241.0,3240.3,0.7545]
[1736914198221,3.0,3241.4,3240.3,3.84059]
[1736914198422,0.38116,3241.3,3240.4,0.7545]
[1736914199340,3.0,3241.2,3240.4,0.7545]
[1736914200264,3.0,3241.2,3240.3,0.188]
[1736914200265,3.08566,3240.8,3240.3,0.188]
[1736914200475,6.69593865,3241.2,3240.1,0.7545]
[1736914200476,3.08593,3240.6,3240.1,0.7545]
[1736914200612,0.55,3240.8,3239.8,0.7545]
[1736914200818,3.08624,3240.2,3239.9,0.188]
[1736914201122,3.08633,3240.1,3239.9,0.188]
[1736914201654,3.08657,3239.9,3239.5,0.188]
[1736914202241,3.08643,3240.0,3239.6,0.7545]
[1736914202947,0.389784,3240.2,3239.6,0.7545]
[1736914203134,3.0859,3240.6,3239.7,0.8279]
[1736914203326,3.0,3240.4,3239.7,0.8279]
[1736914203728,0.60676137,3240.6,3239.9,0.8279]
[1736914204151,4.68336028,3241.1,3240.1,0.8279]
[1736914204340,3.46634,3241.3,3240.3,3.91398]
[1736914204541,3.08498,3241.6,3240.6,3.9137]
[1736914204749,3.63365846,3241.4,3240.7,0.188]
[1736914204942,0.63365846,3241.4,3240.7,0.188]
[1736914205351,3.63365846,3241.4,3240.7,0.188]
[1736914206160,3.0,3241.4,3240.7,0.188]
[1736914206457,3.693621,3241.4,3240.7,0.188]
[1736914207253,3.7991,3241.8,3240.7,0.188]
[1736914207456,3.0,3241.5,3240.7,0.188]
[1736914207824,3.0849,3241.6,3240.7,0.188]
[1736914209760,0.62533618,3241.7,3240.7,0.188]
[1736914210057,3.08501,3241.5,3240.7,0.188]
[1736914210744,0.37103462,3241.5,3240.7,0.188]
[1736914210944,3.08549,3241.0,3240.8,0.189]
[1736914213329,3.08549,3241.0,3240.6,0.8279]
[1736914213560,0.37103462,3241.5,3240.7,0.189]
[1736914213860,3.08524,3241.3,3240.7,0.189]
[1736914214287,0.61853502,3241.2,3240.8,0.189]
[1736914218164,0.61853502,3241.2,3240.9,0.7685]
[1736914220148,0.98891252,3241.2,3240.9,0.7685]
[1736914220349,3.70381502,3241.2,3240.9,0.7685]
[1736914221682,0.61853502,3241.2,3240.9,0.7685]
[1736914221887,3.70385502,3241.2,3240.9,0.7685]
[1736914222088,3.70385502,3241.2,3240.8,0.189]
[1736914222379,3.70385502,3241.2,3240.3,0.7685]
[1736914222380,3.0,3241.1,3240.3,0.7685]
[1736914222533,3.08568,3240.8,3240.4,0.189]
[1736914222736,0.6703855,3241.0,3240.4,0.189]
[1736914222999,0.6703855,3241.0,3240.3,0.7685]
[1736914223000,3.70383502,3241.2,3240.3,0.7685]
[1736914223282,0.61853502,3241.2,3240.6,0.7685]
[1736914223668,3.0,3241.3,3240.6,0.7685]
[1736914224040,3.0849,3241.6,3240.7,0.7685]
[1736914224302,3.0,3241.7,3240.8,0.7685]
[1736914225396,3.08482,3241.7,3240.8,0.7685]
[1736914226203,0.62465996,3241.5,3240.8,0.7685]
[1736914226344,3.08463,3241.9,3240.9,0.79935461]
[1736914226550,0.60432018,3241.8,3241.1,2.89983693]
[1736914226785,0.60432018,3241.8,3241.2,0.7685]
[1736914227295,3.08452,3242.0,3241.2,0.7685]
[1736914227598,3.08487,3241.7,3241.2,0.7685]
[1736914228579,3.08493,3241.6,3241.2,0.7685]
[1736914228750,0.308493,3241.5,3241.2,0.7685]
[1736914229265,3.393483,3241.5,3241.2,0.7685]
[1736914229462,0.308493,3241.5,3240.6,0.7685]
[1736914229693,0.8118,3241.7,3240.7,0.189]
[1736914229996,3.08529,3241.2,3240.7,0.189]
[1736914230498,3.08549,3241.0,3240.6,0.7685]
[1736914230686,3.08549,3241.0,3240.7,0.189]
[1736914230906,3.08556,3240.9,3240.7,0.189]
[1736914231505,3.08556,3240.9,3240.2,0.7685]
[1736914231786,3.08571,3240.8,3240.6,0.189]
[1736914231992,0.308556,3240.9,3240.6,0.189]
[1736914231993,3.08575,3240.7,3240.6,0.189]
[1736914232202,3.0,3240.7,3239.9,0.7685]
[1736914232412,3.08632,3240.1,3240.0,0.189]
[1736914232580,3.08632,3240.1,3239.8,0.189]
[1736914233207,3.395052,3240.0,3239.8,0.189]
[1736914233706,3.395052,3240.0,3239.6,0.189]
[1736914234804,3.08653,3239.9,3239.6,0.189]
[1736914235518,3.08663,3239.8,3239.0,2.89983693]
[1736914235807,3.08663,3239.8,3239.1,1.004]
[1736914236510,3.08663,3239.8,3239.2,0.189]
[1736914236705,3.08663,3239.8,3239.1,0.815]
[1736914236906,3.08663,3239.8,3239.3,0.189]
[1736914238223,4.00483638,3240.0,3239.4,0.189]
[1736914239180,3.08652,3239.9,3239.5,0.189]
[1736914239380,0.40049164,3239.8,3239.5,0.189]
[1736914239888,0.60976438,3240.0,3239.5,0.189]
[1736914240289,3.69624438,3240.0,3239.5,0.189]
[1736914242026,3.69624438,3240.0,3239.1,0.815]
[1736914242323,3.69624438,3240.0,3239.2,0.186]
[1736914242843,0.60976438,3240.0,3239.2,0.186]
[1736914242995,3.08593,3240.6,3239.4,0.815]
[1736914243334,3.68449469,3240.6,3239.4,0.815]
[1736914243843,0.61361267,3240.4,3239.4,0.815]
[1736914243991,3.08568,3240.8,3239.8,3.08657]
[1736914244195,3.08568,3240.8,3239.9,0.815]
[1736914244396,3.08584,3240.7,3239.9,0.815]
[1736914244737,3.08605,3240.4,3239.9,0.815]
[1736914245840,0.61404566,3240.6,3239.9,0.815]
[1736914246004,0.61404566,3240.6,3239.6,0.815]
[1736914246005,3.08632,3240.1,3239.6,0.815]
[1736914246210,3.08642,3240.0,3239.3,0.815]
[1736914246734,3.08654,3239.9,3239.3,0.815]
[1736914248308,3.08654,3239.9,3239.4,0.186]
[1736914250087,3.08654,3239.9,3239.5,0.186]
[1736914250287,3.71895692,3239.9,3239.5,0.186]
[1736914251374,4.09085261,3239.9,3239.5,0.186]
[1736914252276,1.00431261,3239.9,3239.3,0.815]
[1736914252437,3.08662,3239.8,3239.5,0.186]
[1736914252976,0.63241692,3239.9,3239.5,0.186]
[1736914253534,0.63241692,3239.9,3239.3,0.815]
[1736914253736,0.63241692,3239.9,3239.4,0.186]
[1736914257443,3.71892692,3239.9,3239.4,0.186]
[1736914257643,4.09081961,3239.9,3239.4,0.186]
[1736914259409,3.71892692,3239.9,3239.4,0.186]
[1736914259572,0.63241692,3239.9,3239.4,0.186]
[1736914260389,3.71893692,3239.9,3239.4,0.186]
[1736914260545,0.63241692,3239.9,3239.4,0.186]
[1736914262190,3.08672,3239.7,3239.4,0.186]
[1736914262393,0.308672,3239.6,3239.4,0.186]
[1736914262542,0.63241692,3239.9,3239.5,0.7875]
[1736914263050,3.71892692,3239.9,3239.5,0.7875]
[1736914263276,3.08661,3239.8,3239.5,0.7875]
[1736914263840,0.63241692,3239.9,3239.5,0.7875]
[1736914267590,3.08612,3240.4,3239.5,0.7875]
[1736914267761,3.08616,3240.3,3239.5,0.7875]
[1736914268096,3.0,3240.2,3239.5,0.7875]
[1736914269391,0.60919073,3240.1,3239.5,0.7875]
[1736914269591,3.08642,3240.0,3239.5,0.7875]
[1736914269829,3.08664,3239.8,3239.6,0.186]
[1736914270092,1.43279073,3240.1,3238.4,3.08793]
[1736914270093,3.08689,3239.5,3239.3,0.186]
[1736914270250,3.395579,3239.5,3239.3,0.186]
[1736914270451,3.08689,3239.5,3239.3,0.186]
[1736914270648,3.08716,3239.3,3238.9,0.8092]
[1736914270895,3.08716,3239.3,3239.2,0.186]
[1736914271447,3.0,3239.4,3238.9,0.185]
[1736914271703,3.08751,3238.9,3238.6,0.8092]
[1736914271989,3.08751,3238.9,3238.7,0.185]
[1736914272190,0.44388171,3239.3,3238.7,0.185]
[1736914272391,0.44388171,3239.3,3238.6,0.185]
[1736914272392,0.55,3239.2,3238.6,0.185]
[1736914272595,0.44388171,3239.3,3238.6,0.185]
[1736914272596,3.08765,3238.7,3238.6,0.185]
[1736914272794,3.396415,3238.7,3238.6,0.185]
[1736914273456,6.396415,3238.7,3238.6,0.185]
[1736914274875,3.08831,3238.1,3237.8,0.8092]
[1736914275076,3.08831,3238.1,3237.9,0.185]
[1736914275492,3.08832,3238.0,3237.8,0.8092]
[1736914275692,3.08832,3238.0,3237.9,0.185]
[1736914275992,3.08832,3238.0,3237.8,0.185]
[1736914276352,3.08842,3237.9,3237.8,0.185]
[1736914280687,0.37156693,3237.9,3237.5,0.8092]
[1736914280891,0.62724929,3238.0,3237.6,0.185]
[1736914281186,3.08861,3237.7,3237.6,0.185]
[1736914282502,3.08861,3237.7,3237.2,0.7978]
[1736914282707,3.08861,3237.7,3237.4,0.185]
[1736914282908,3.08879,3237.6,3237.2,0.7978]
[1736914283124,0.821,3237.9,3237.2,0.7978]
[1736914283125,3.0888,3237.5,3237.2,0.7978]
[1736914283425,3.0888,3237.5,3237.2,0.9828]
[1736914285529,0.62724929,3238.0,3237.2,0.9828]
[1736914286188,3.08843,3237.9,3237.2,0.9828]
[1736914287227,0.62724929,3238.0,3237.2,0.9828]
[1736914287388,3.08851,3237.8,3237.2,0.9828]
[1736914287784,0.62724929,3238.0,3237.2,0.9828]
[1736914288210,3.08846,3237.9,3237.2,0.9828]
[1736914289806,3.08852,3237.8,3237.2,0.9828]
[1736914291416,3.71557929,3238.0,3237.2,0.9828]
[1736914291621,3.08842,3237.9,3237.2,0.9828]
[1736914293371,3.08842,3237.9,3237.2,0.7978]
[1736914293647,3.08842,3237.9,3237.3,0.186]
[1736914296452,0.7852,3238.5,3237.5,0.7918]
[1736914296653,3.08822,3238.2,3237.5,0.7918]
[1736914298024,3.70142593,3238.1,3237.5,0.7918]
[1736914298222,0.61318593,3238.1,3237.5,0.7918]
[1736914298416,3.08861,3237.7,3237.6,0.186]
[1736914298647,3.397471,3237.7,3237.6,0.186]
[1736914302129,3.397471,3237.7,3237.2,0.7918]
[1736914302326,0.308861,3237.7,3237.2,0.7918]
[1736914302570,3.08898,3237.4,3237.0,0.9768]
[1736914304671,1.094061,3237.7,3237.0,0.9768]
[1736914304672,3.08873,3237.6,3237.0,0.9768]
[1736914304844,3.0887,3237.6,3237.0,0.9768]
[1736914305043,0.3397561,3237.6,3237.0,0.9768]
[1736914305273,3.08887,3237.5,3237.0,0.9768]
[1736914306571,0.63092028,3237.4,3237.0,0.9768]
[1736914307947,3.089,3237.3,3237.0,0.7918]
[1736914308151,0.63092028,3237.4,3237.1,0.185]
[1736914308563,0.63092028,3237.4,3237.0,0.7918]
[1736914308779,0.63092028,3237.4,3237.0,0.185]
[1736914309078,0.63092028,3237.4,3236.7,0.7907]
[1736914309251,0.63092028,3237.4,3236.8,0.185]
[1736914309440,3.08922,3237.1,3236.9,0.185]
[1736914309639,3.398142,3237.1,3236.9,0.185]
[1736914310278,3.398142,3237.1,3236.8,0.185]
[1736914310433,0.308922,3237.1,3236.8,0.185]
[1736914310641,3.0,3237.3,3236.8,0.185]
[1736914310837,3.08937,3236.9,3236.8,0.185]
[1736914311805,3.08954,3236.8,3236.4,0.7907]
[1736914311964,3.08954,3236.8,3236.5,0.185]
[1736914313190,3.0,3237.3,3236.5,0.185]
[1736914313395,3.397551,3237.7,3236.5,0.185]
[1736914313396,3.0,3237.0,3236.5,0.185]
[1736914313596,3.08966,3236.6,3236.5,0.185]
[1736914314909,3.08995,3236.3,3236.1,0.185]
[1736914315115,3.09004,3236.2,3235.7,0.7907]
[1736914315299,3.09004,3236.2,3235.8,0.185]
[1736914316096,3.08986,3236.4,3235.8,0.185]
[1736914316299,3.08996,3236.3,3235.8,0.185]
[1736914317307,3.08996,3236.3,3235.9,0.185]
[1736914318311,0.7914,3236.2,3234.8,2.54436627]
[1736914318471,0.7914,3236.2,3235.4,0.185]
[1736914318472,3.09028,3236.0,3235.4,0.185]
[1736914318809,3.09054,3235.7,3235.2,0.185]
[1736914319572,3.09054,3235.7,3235.3,0.185]
[1736914319772,3.09054,3235.7,3235.1,0.7907]
[1736914320024,3.09054,3235.7,3235.2,0.185]
[1736914320233,3.09054,3235.7,3235.4,0.022]
[1736914320392,5.99002693,3236.1,3235.4,0.022]
[1736914320393,3.09062,3235.6,3235.4,0.022]
[1736914320794,5.99002693,3236.1,3235.4,0.022]
[1736914320795,2.89983693,3236.1,3235.4,0.022]
[1736914321006,0.61911837,3235.5,3235.4,0.022]
[1736914323040,3.70982837,3235.5,3235.4,0.022]
[1736914324021,3.7607,3236.0,3235.4,0.022]
[1736914324352,3.09007,3236.2,3235.4,0.8284]
[1736914324693,3.09024,3236.0,3235.4,0.8284]
[1736914325057,0.309024,3236.0,3235.4,0.8284]
[1736914325207,0.7607,3235.9,3235.4,0.022]
[1736914326052,0.309024,3236.0,3235.4,0.022]
[1736914326192,0.62080988,3236.1,3235.5,0.8064]
[1736914326424,3.71101988,3236.1,3235.5,0.8064]
[1736914326855,3.09052,3235.7,3235.4,0.022]
[1736914327670,3.09052,3235.7,3235.5,0.185]
[1736914329863,3.09045,3235.8,3235.5,0.185]
[1736914330084,3.475565,3235.8,3235.5,0.185]
[1736914330780,3.09054,3235.7,3235.5,0.185]
[1736914332242,0.7607,3236.0,3235.5,0.185]
[1736914332443,0.62080988,3236.1,3235.6,0.8064]
[1736914333806,3.09033,3235.9,3235.5,0.185]
[1736914335182,0.62080988,3236.1,3235.5,0.185]
[1736914335372,3.09043,3235.8,3235.5,0.185]
[1736914335880,0.36208099,3236.0,3235.5,0.185]
[1736914335881,3.09027,3236.0,3235.5,0.185]
[1736914336975,0.62080988,3236.1,3235.5,0.185]
[1736914337354,3.71095988,3236.1,3235.5,0.185]
[1736914338384,3.08977,3236.5,3235.6,0.81240689]
[1736914338700,3.0896,3236.7,3235.6,0.81240689]
[1736914338873,0.6329102,3236.5,3235.6,0.81240689]
[1736914339068,0.6329102,3236.5,3235.6,3.12146689]
[1736914339269,0.6329102,3236.5,3235.7,0.7815]
[1736914339476,3.7226702,3236.5,3235.7,0.7815]
[1736914341608,0.6329102,3236.5,3235.7,0.7815]
[1736914341978,0.6329102,3236.5,3235.7,0.81240191]
[1736914343063,3.08936,3237.0,3236.1,0.7815]
[1736914343304,0.6070233,3236.8,3236.1,0.7815]
[1736914343471,0.36964033,3236.7,3236.1,0.7815]
[1736914343665,3.08982,3236.5,3236.1,0.7815]
[1736914344065,3.08956,3236.7,3236.1,0.7815]
[1736914345832,3.08959,3236.7,3236.1,0.7815]
[1736914349635,3.6965733,3236.8,3236.1,0.7815]
[1736914349837,4.14797063,3236.8,3236.1,0.7815]
[1736914351309,3.0,3237.2,3235.5,3.185]
[1736914351310,3.08911,3237.2,3236.3,0.7815]
[1736914351499,3.08911,3237.2,3236.4,0.185]
[1736914352397,0.61984161,3236.9,3236.4,0.185]
[1736914352755,0.8174,3237.3,3236.4,0.185]
[1736914352962,0.38174,3237.3,3236.5,0.7745]
[1736914353116,0.62733345,3237.0,3236.5,0.7745]
[1736914356261,3.8272,3237.6,3236.5,0.7745]
[1736914356415,3.08892,3237.4,3236.5,0.7745]
[1736914356610,0.691612,3237.4,3236.5,0.7745]
[1736914356840,3.08911,3237.2,3236.5,0.7745]
[1736914357163,3.0893,3237.0,3236.5,0.7745]
[1736914358142,3.08946,3236.9,3236.5,0.7745]
[1736914358455,3.08953,3236.8,3236.6,0.185]
[1736914358663,3.08966,3236.6,3235.9,0.7745]
[1736914358815,3.08966,3236.6,3236.3,0.185]
[1736914360862,3.08948,3236.8,3236.3,0.185]
[1736914361069,3.398428,3236.8,3236.3,0.185]
[1736914362161,3.398428,3236.8,3236.4,0.7922]
[1736914362552,3.08958,3236.7,3236.4,0.7922]
[1736914362748,3.08997,3236.3,3236.1,0.185]
[1736914363063,0.308997,3236.2,3236.1,0.185]
[1736914363671,3.08997,3236.3,3236.1,0.185]
[1736914365565,3.09023,3236.1,3235.7,0.7922]
[1736914365770,3.09041,3235.9,3235.7,0.185]
[1736914365975,3.09041,3235.9,3235.4,0.022]
[1736914365976,3.87881,3235.9,3235.4,0.022]
[1736914366125,3.87881,3235.9,3235.6,0.185]
[1736914366519,4.266691,3235.9,3235.6,0.185]
[1736914366719,3.09047,3235.8,3235.6,0.185]
[1736914367477,3.09062,3235.6,3235.5,0.185]
[1736914369122,0.60383362,3236.2,3235.5,0.185]
[1736914369123,5.98939693,3236.7,3235.5,0.185]
[1736914369367,3.09026,3236.0,3235.6,0.7581]
[1736914369952,0.6214168,3235.9,3235.6,0.7581]
[1736914370167,3.09002,3236.3,3235.6,0.7581]
[1736914370375,0.7772,3236.7,3235.6,0.7581]
[1736914370747,3.7772,3236.7,3235.6,0.7581]
[1736914370964,0.61145241,3236.2,3235.6,0.7581]
[1736914371765,3.09027,3236.0,3235.6,0.7581]
[1736914372156,1.38865241,3236.2,3235.6,0.7581]
[1736914372483,3.09051,3235.8,3235.7,0.185]
[1736914372684,3.09063,3235.6,3235.4,0.022]
[1736914372870,0.309063,3235.5,3235.4,0.022]
[1736914373074,0.309063,3235.5,3235.4,0.207]
[1736914373456,3.399773,3235.5,3235.4,0.207]
[1736914374155,3.399773,3235.5,3235.4,0.022]
[1736914377968,4.02469944,3235.5,3235.4,0.022]
[1736914381264,0.62492644,3235.5,3235.4,0.022]
[1736914382403,3.71563644,3235.5,3235.4,0.022]
[1736914382927,4.48463644,3235.5,3235.4,0.022]
[1736914384522,7.48463644,3235.5,3235.4,0.022]
[1736914385190,8.03463644,3235.5,3235.4,0.022]
[1736914385393,9.12808378,3235.5,3235.4,0.022]
[1736914388977,9.12808378,3235.5,3235.0,0.1662301]
[1736914388978,3.09109,3235.1,3235.0,0.1662301]
[1736914390096,0.772,3235.4,3235.0,0.1662301]
[1736914390310,3.09109,3235.1,3235.0,0.1662301]
[1736914391696,3.86309,3235.1,3235.0,0.1662301]
[1736914393043,3.09109,3235.1,3235.0,0.1662301]
[1736914393996,0.772,3235.4,3235.0,0.1662301]
[1736914393997,3.09089,3235.4,3235.0,0.1662301]
[1736914394301,3.09095,3235.3,3235.0,0.1662301]
[1736914394822,3.09109,3235.1,3235.0,0.1662301]
[1736914395744,3.09093,3235.3,3235.0,0.1662301]
[1736914398612,3.71566644,3235.5,3235.0,0.1662301]
[1736914398963,0.62492644,3235.5,3235.1,0.8065]
[1736914400065,3.09035,3235.9,3235.1,0.8065]
[1736914400230,2.89983693,3236.6,3235.3,0.8065]
[1736914400231,0.63073777,3236.1,3235.3,0.8065]
[1736914400433,0.63073777,3236.1,3235.5,0.8065]
[1736914400866,3.08988,3236.4,3235.5,0.8065]
[1736914401031,3.08969,3236.6,3235.5,0.83740486]
[1736914401222,0.62379978,3236.4,3235.6,0.8065]
[1736914401589,0.62379978,3236.4,3235.8,0.8065]
[1736914406293,0.63135132,3237.6,3235.8,0.8065]
[1736914406294,0.7773,3237.2,3235.9,3.09032]
[1736914406593,3.71052723,3236.6,3236.0,0.8065]
[1736914406809,3.08978,3236.5,3236.0,0.8065]
[1736914409491,3.08985,3236.4,3236.0,0.8065]
[1736914411888,3.08985,3236.4,3236.1,0.185]
[1736914412076,0.37106972,3236.4,3236.0,0.8065]
[1736914412259,3.09009,3236.2,3236.1,0.185]
[1736914412731,3.88089,3236.2,3235.7,0.8303]
[1736914412962,3.09047,3235.8,3235.7,0.185]
[1736914413539,3.0,3236.0,3235.1,0.8303]
[1736914413702,3.0,3236.0,3235.6,0.185]
[1736914413703,3.09052,3235.7,3235.6,0.185]
[1736914413899,0.618085,3235.7,3235.1,0.8303]
[1736914414089,3.0,3236.0,3234.3,2.89983693]
[1736914414090,3.0909,3235.3,3234.3,2.89983693]
[1736914414310,3.0909,3235.3,3235.1,0.185]
[1736914414541,3.0909,3235.3,3234.9,0.8303]